bitfinex/quotes_SOLUSD_20241209
["timestamp","ask_amount","ask_price","bid_price","bid_amount"]
[1733771152514,21.07150613,223.75,223.68,21.07150613]
[1733771152688,21.07150613,223.74,223.67,7.9416]
[1733771153278,21.07150613,223.74,223.68,0.12549]
[1733771153705,21.07150613,223.74,223.69,0.12549]
[1733771154103,21.07150613,223.72,223.67,7.9416]
[1733771154498,21.07150613,223.74,223.68,0.12549]
[1733771155396,21.07150613,223.74,223.68,24.027864]
[1733771156301,21.07150613,223.72,223.68,24.027864]
[1733771156517,20.0,223.83,223.68,24.027864]
[1733771156518,21.07150613,223.71,223.68,24.027864]
[1733771156684,21.07150613,223.71,223.67,6.3934]
[1733771156685,21.07150613,223.69,223.62,8.5583776]
[1733771156892,21.07150613,223.68,223.63,0.12549]
[1733771157109,21.07150613,223.73,223.66,21.19699613]
[1733771157283,21.07150613,223.74,223.67,0.25098]
[1733771157483,21.07150613,223.73,223.67,0.25098]
[1733771157711,21.07150613,223.74,223.67,0.25098]
[1733771157922,21.07150613,223.73,223.67,0.25098]
[1733771158106,21.07150613,223.75,223.69,0.12549]
[1733771158413,21.07150613,223.75,223.69,24.027864]
[1733771158594,21.07150613,223.74,223.69,0.25098]
[1733771158989,21.07150613,223.74,223.69,0.12549]
[1733771159198,13.20706685,223.74,223.68,0.12549]
[1733771159616,13.20706685,223.75,223.68,0.12549]
[1733771160098,13.20706685,223.74,223.68,0.12549]
[1733771160423,13.20706685,223.72,223.67,23.902374]
[1733771160622,13.20706685,223.72,223.65,13.20706685]
[1733771160785,36.1147,223.83,223.64,0.12549]
[1733771161123,13.20706685,223.66,223.62,8.5583776]
[1733771161483,13.20706685,223.65,223.62,0.5289776]
[1733771161683,13.20706685,223.64,223.62,0.5289776]
[1733771161890,13.20706685,223.63,223.62,0.5289776]
[1733771162104,6.1267,223.71,223.62,0.5289776]
[1733771162105,13.20706685,223.64,223.62,0.5289776]
[1733771162285,13.20706685,223.66,223.63,0.12549]
[1733771162491,13.20706685,223.64,223.62,0.5289776]
[1733771162823,13.20706685,223.69,223.62,0.5289776]
[1733771163117,1.5122,223.78,223.63,0.79604561]
[1733771163118,20.0,223.74,223.63,0.79604561]
[1733771163306,20.0,223.74,223.69,0.12549]
[1733771163626,11.1267,223.83,223.64,0.12549]
[1733771163914,11.1267,223.83,223.64,24.027864]
[1733771164217,21.13149286,223.71,223.64,0.12549]
[1733771164524,21.13149286,223.74,223.67,45.15935686]
[1733771164900,21.13149286,223.75,223.67,45.15935686]
[1733771165100,21.13149286,223.73,223.67,24.027864]
[1733771165306,21.13149286,223.72,223.67,24.027864]
[1733771165631,21.13149286,223.7,223.67,23.902374]
[1733771165800,11.1267,223.83,223.62,21.66047046]
[1733771165801,21.13149286,223.68,223.62,0.5289776]
[1733771165993,21.13149286,223.67,223.62,0.5289776]
[1733771166195,21.13149286,223.66,223.62,0.5289776]
[1733771166496,21.13149286,223.65,223.62,0.5289776]
[1733771166713,21.13149286,223.65,223.63,0.12549]
[1733771167095,21.13149286,223.65,223.63,23.902374]
[1733771167924,21.13149286,223.68,223.63,23.902374]
[1733771168098,21.13149286,223.69,223.64,0.12549]
[1733771168299,21.13149286,223.71,223.64,0.12549]
[1733771168511,21.13149286,223.7,223.64,0.12549]
[1733771169219,21.13149286,223.69,223.64,0.12549]
[1733771170629,21.13149286,223.7,223.64,0.12549]
[1733771170796,21.13149286,223.71,223.64,0.12549]
[1733771170998,5.0,223.82,223.62,1.1995079]
[1733771170999,21.13149286,223.75,223.69,0.12549]
[1733771171523,21.13149286,223.75,223.69,21.25698286]
[1733771171713,21.13149286,223.77,223.71,0.12549]
[1733771171900,21.13149286,223.77,223.73,0.12549]
[1733771172099,21.13149286,223.76,223.73,0.12549]
[1733771172526,21.13149286,223.76,223.72,23.902374]
[1733771172527,21.13149286,223.77,223.72,0.12549]
[1733771172706,21.13149286,223.78,223.72,0.12549]
[1733771172901,21.13149286,223.77,223.72,0.12549]
[1733771173102,21.13149286,223.76,223.72,0.12549]
[1733771173835,21.13149286,223.73,223.72,0.12549]
[1733771174823,21.13149286,223.73,223.68,1.5606]
[1733771175127,1.5122,223.84,223.68,1.5606]
[1733771175128,21.13149286,223.71,223.68,1.5606]
[1733771175318,21.13149286,223.71,223.69,0.12549]
[1733771175834,21.13149286,223.71,223.65,6.5396]
[1733771176213,21.13149286,223.7,223.66,24.027864]
[1733771177219,21.13149286,223.7,223.65,6.5396]
[1733771177426,21.13149286,223.69,223.65,6.5396]
[1733771177733,21.13149286,223.68,223.63,1.6245]
[1733771178100,21.13149286,223.74,223.62,0.5289776]
[1733771178101,21.13149286,223.64,223.62,0.5289776]
[1733771178317,21.13149286,223.65,223.63,0.12549]
[1733771178652,21.13149286,223.7,223.63,0.12549]
[1733771179030,21.13149286,223.69,223.63,0.12549]
[1733771179231,21.13149286,223.71,223.63,45.15935686]
[1733771179540,21.13149286,223.71,223.63,45.82986519]
[1733771179726,21.13149286,223.71,223.66,0.12549]
[1733771179922,21.13149286,223.7,223.66,0.12549]
[1733771180123,21.13149286,223.68,223.66,0.12549]
[1733771180434,21.13149286,223.68,223.65,0.12549]
[1733771180435,21.13149286,223.69,223.65,0.25098]
[1733771180635,21.13149286,223.68,223.63,24.027864]
[1733771181039,21.13149286,223.68,223.62,24.3058616]
[1733771181223,21.13149286,223.7,223.62,46.10793384]
[1733771181422,21.13149286,223.72,223.65,21.25698286]
[1733771181633,21.13149286,223.72,223.67,0.12549]
[1733771181842,6.0532,223.81,223.67,0.12549]
[1733771181843,21.13149286,223.7,223.67,0.12549]
[1733771182423,21.13149286,223.7,223.67,0.25098]
[1733771183018,21.13149286,223.7,223.67,0.12549]
[1733771184049,21.13149286,223.68,223.67,0.12549]
[1733771184856,21.13149286,223.68,223.66,23.776884]
[1733771185156,21.13149286,223.74,223.66,23.776884]
[1733771185157,21.13149286,223.67,223.66,23.776884]
[1733771185326,13.21469306,223.67,223.66,23.776884]
[1733771185523,13.21469306,223.67,223.62,0.5289776]
[1733771185524,13.21469306,223.67,223.63,0.12549]
[1733771185830,13.21469306,223.64,223.63,23.902374]
[1733771187136,13.21469306,223.64,223.62,0.5289776]
[1733771187339,13.21469306,223.63,223.62,0.5289776]
[1733771190048,6.6335,223.73,223.62,0.5289776]
[1733771190049,13.21469306,223.64,223.62,0.5289776]
[1733771190351,13.21469306,223.63,223.62,0.5289776]
[1733771191034,13.21469306,223.64,223.62,0.5289776]
[1733771191422,13.21469306,223.68,223.63,0.12549]
[1733771191761,13.21469306,223.7,223.63,37.24255706]
[1733771191926,13.21469306,223.71,223.63,37.91303728]
[1733771192130,13.21469306,223.71,223.65,0.12549]
[1733771192331,13.21469306,223.71,223.65,24.6983043]
[1733771192530,13.21469306,223.7,223.65,0.25098]
[1733771192857,13.21469306,223.68,223.63,0.12549]
[1733771193063,13.21469306,223.69,223.63,24.027864]
[1733771193222,13.21469306,223.7,223.63,24.027864]
[1733771193545,13.21469306,223.68,223.63,24.027864]
[1733771194257,13.21469306,223.69,223.63,24.027864]
[1733771195362,13.21469306,223.72,223.65,13.21469306]
[1733771195530,13.21469306,223.71,223.66,24.027864]
[1733771195863,13.21469306,223.71,223.66,0.25098]
[1733771196069,1.5904,223.78,223.69,0.12549]
[1733771196231,1.5904,223.78,223.67,0.67044394]
[1733771196232,13.21469306,223.77,223.71,0.12549]
[1733771196628,13.21469306,223.76,223.71,0.12549]
[1733771196856,13.21469306,223.75,223.71,0.12549]
[1733771197062,13.21469306,223.72,223.67,23.776884]
[1733771197367,13.21469306,223.68,223.62,0.5289776]
[1733771197744,13.21469306,223.69,223.63,0.12549]
[1733771198131,13.21469306,223.68,223.63,0.12549]
[1733771198332,13.21469306,223.66,223.62,0.5289776]
[1733771198534,13.21469306,223.65,223.62,0.5289776]
[1733771200334,13.21469306,223.63,223.62,0.5289776]
[1733771200674,13.21469306,223.65,223.62,0.5289776]
[1733771201552,13.21469306,223.66,223.62,0.5289776]
[1733771201764,13.21469306,223.67,223.62,0.5289776]
[1733771202072,13.21469306,223.65,223.62,0.5289776]
[1733771202237,13.21469306,223.64,223.62,0.5289776]
[1733771203336,13.21469306,223.65,223.62,0.5289776]
[1733771203541,13.21469306,223.66,223.62,0.5289776]
[1733771203755,20.0,223.71,223.62,0.5289776]
[1733771203756,13.21469306,223.65,223.62,0.5289776]
[1733771204144,13.21469306,223.64,223.62,0.5289776]
[1733771204576,13.21469306,223.65,223.62,0.5289776]
[1733771205262,20.0,223.71,223.62,0.5289776]
[1733771205263,13.21469306,223.64,223.62,0.5289776]
[1733771206140,13.21469306,223.65,223.62,0.5289776]
[1733771206845,13.21469306,223.63,223.62,0.5289776]
[1733771207839,13.21469306,223.64,223.62,0.5289776]
[1733771208338,13.21469306,223.65,223.62,0.5289776]
[1733771210469,13.21469306,223.67,223.62,0.5289776]
[1733771210844,13.21469306,223.65,223.62,0.5289776]
[1733771211071,13.21469306,223.64,223.62,0.5289776]
[1733771211278,13.21469306,223.63,223.62,0.5289776]
[1733771211449,20.0,223.71,223.62,0.5289776]
[1733771211450,13.21469306,223.65,223.62,0.5289776]
[1733771211650,13.21469306,223.64,223.62,0.5289776]
[1733771211939,13.21469306,223.63,223.62,0.5289776]
[1733771213156,13.21469306,223.66,223.62,0.5289776]
[1733771213362,13.21469306,223.63,223.62,0.5289776]
[1733771214143,13.21469306,223.64,223.62,0.5289776]
[1733771214570,13.21469306,223.65,223.62,0.5289776]
[1733771214752,13.21469306,223.66,223.62,0.5289776]
[1733771214955,20.0,223.71,223.62,0.5289776]
[1733771214956,13.21469306,223.67,223.62,0.5289776]
[1733771215159,13.21469306,223.66,223.62,0.5289776]
[1733771216378,13.21469306,223.67,223.62,0.5289776]
[1733771216875,13.21469306,223.66,223.62,0.5289776]
[1733771217451,13.21469306,223.67,223.62,0.5289776]
[1733771217774,13.21469306,223.68,223.63,24.027864]
[1733771218072,13.21469306,223.68,223.63,23.776884]
[1733771218273,13.21469306,223.68,223.62,0.5289776]
[1733771218846,13.21469306,223.69,223.63,24.027864]
[1733771219521,13.21469306,223.72,223.65,24.027864]
[1733771219845,13.21469306,223.71,223.65,24.027864]
[1733771220047,13.21469306,223.72,223.65,24.027864]
[1733771220551,13.21469306,223.71,223.65,0.12549]
[1733771221077,1.6403,223.79,223.66,0.25098]
[1733771221078,13.21469306,223.73,223.66,0.25098]
[1733771221267,13.21469306,223.73,223.67,23.776884]
[1733771221679,13.21469306,223.73,223.66,24.027864]
[1733771221973,1.6403,223.79,223.66,24.027864]
[1733771221974,13.21469306,223.72,223.66,24.027864]
[1733771222487,13.21469306,223.7,223.66,24.027864]
[1733771223284,13.21469306,223.77,223.69,24.027864]
[1733771223492,13.21469306,223.77,223.71,24.027864]
[1733771223664,13.21469306,223.78,223.71,24.027864]
[1733771224153,1.6431,223.84,223.71,24.027864]
[1733771224154,13.21469306,223.77,223.71,24.027864]
[1733771224779,13.21469306,223.79,223.73,0.12549]
[1733771224988,13.21469306,223.78,223.73,24.027864]
[1733771225286,13.21469306,223.79,223.73,24.027864]
[1733771225682,13.21469306,223.79,223.72,24.027864]
[1733771226053,13.21469306,223.8,223.72,37.24255706]
[1733771227267,13.21469306,223.8,223.74,24.027864]
[1733771227583,13.21469306,223.83,223.78,0.12549]
[1733771227956,13.21469306,223.82,223.78,0.12549]
[1733771228158,13.21469306,223.82,223.76,24.027864]
[1733771228353,13.21469306,223.83,223.76,24.027864]
[1733771228981,13.21469306,223.83,223.76,37.24255706]
[1733771229187,13.21469306,223.85,223.79,0.12549]
[1733771230866,13.21469306,223.86,223.8,0.12549]
[1733771231067,13.21469306,223.83,223.8,0.12549]
[1733771231304,13.21469306,223.82,223.8,0.12549]
[1733771231599,13.21469306,223.82,223.78,6.1818]
[1733771231762,13.21469306,223.82,223.75,14.72709306]
[1733771231763,13.21469306,223.79,223.75,1.5124]
[1733771231963,13.21469306,223.79,223.76,0.12549]
[1733771232189,13.21469306,223.81,223.76,0.12549]
[1733771233198,10.21679034,223.9,223.72,6.8518083]
[1733771233199,13.21469306,223.78,223.72,6.8518083]
[1733771233386,13.21469306,223.78,223.73,23.776884]
[1733771233571,13.21469306,223.79,223.74,0.12549]
[1733771233765,13.21469306,223.8,223.73,13.21469306]
[1733771233973,13.21469306,223.81,223.74,13.34018306]
[1733771234275,13.21469306,223.8,223.75,0.12549]
[1733771234463,10.21679034,223.9,223.75,0.12549]
[1733771234464,13.21469306,223.79,223.75,0.12549]
[1733771234965,13.21469306,223.79,223.73,24.027864]
[1733771235804,13.21469306,223.8,223.73,37.24255706]
[1733771236001,15.21679034,223.9,223.73,37.24255706]
[1733771236002,10.21679034,223.9,223.77,13.46567306]
[1733771236291,10.21679034,223.9,223.77,0.25098]
[1733771236292,13.21469306,223.81,223.77,0.25098]
[1733771236502,13.21469306,223.83,223.77,0.25098]
[1733771236799,10.21679034,223.9,223.77,13.46567306]
[1733771237095,13.21469306,223.83,223.77,0.25098]
[1733771237673,13.21469306,223.84,223.79,0.25098]
[1733771237876,13.21469306,223.83,223.79,0.25098]
[1733771238300,13.21469306,223.8,223.73,13.21469306]
[1733771238476,13.21469306,223.79,223.74,0.12549]
[1733771238798,10.21679034,223.9,223.74,13.46567306]
[1733771238799,13.21469306,223.81,223.74,13.46567306]
[1733771239312,13.21469306,223.79,223.76,0.25098]
[1733771239471,13.21469306,223.8,223.76,0.25098]
[1733771239671,13.21469306,223.79,223.74,0.25098]
[1733771240082,13.21469306,223.8,223.74,0.25098]
[1733771241203,10.21679034,223.9,223.74,0.25098]
[1733771241204,13.21469306,223.79,223.74,0.25098]
[1733771241583,13.21469306,223.78,223.74,0.25098]
[1733771242170,13.21469306,223.77,223.72,6.1818]
[1733771242398,13.21469306,223.73,223.66,19.35099306]
[1733771242598,13.21469306,223.71,223.66,6.1363]
[1733771242902,6.2564,223.82,223.66,6.1363]
[1733771242903,13.21469306,223.72,223.66,6.1363]
[1733771243077,13.21469306,223.71,223.67,0.12549]
[1733771243477,11.2444,223.82,223.62,0.5289776]
[1733771243478,13.21469306,223.68,223.62,0.5289776]
[1733771243685,13.21469306,223.66,223.62,0.5289776]
[1733771243977,13.21469306,223.65,223.62,0.5289776]
[1733771244385,13.21469306,223.64,223.62,0.5289776]
[1733771245687,1.5614,223.72,223.62,0.5289776]
[1733771245688,13.21469306,223.65,223.62,0.5289776]
[1733771246299,13.21469306,223.64,223.62,0.5289776]
[1733771246485,13.21469306,223.65,223.62,0.5289776]
[1733771247994,13.21469306,223.64,223.62,0.5289776]
[1733771248985,13.21469306,223.63,223.62,0.5289776]
[1733771250021,13.21469306,223.67,223.62,0.5289776]
[1733771250511,13.21469306,223.66,223.63,0.12549]
[1733771250713,13.21469306,223.74,223.64,0.12549]
[1733771250714,13.21469306,223.68,223.64,0.12549]
[1733771250890,13.21469306,223.69,223.64,0.12549]
[1733771251088,13.21469306,223.7,223.64,0.12549]
[1733771251301,13.21469306,223.69,223.64,0.12549]
[1733771251709,13.21469306,223.71,223.64,0.12549]
[1733771252225,13.21469306,223.71,223.66,0.12549]
[1733771252887,13.21469306,223.72,223.66,0.12549]
[1733771253509,13.21469306,223.71,223.66,0.12549]
[1733771253703,13.21469306,223.7,223.64,24.027864]
[1733771253902,13.21469306,223.7,223.63,13.21469306]
[1733771253903,13.21469306,223.72,223.66,0.25098]
[1733771254096,1.6151,223.77,223.66,0.25098]
[1733771254097,13.21469306,223.73,223.66,0.25098]
[1733771254319,13.21469306,223.73,223.68,0.12549]
[1733771254601,13.21469306,223.73,223.68,0.25098]
[1733771254818,13.21469306,223.74,223.68,0.25098]
[1733771255016,13.21469306,223.77,223.7,13.46567306]
[1733771255313,13.21469306,223.79,223.74,0.25098]
[1733771255495,13.21469306,223.75,223.74,0.12549]
[1733771255928,13.21469306,223.76,223.74,0.12549]
[1733771256439,13.21469306,223.85,223.72,24.027864]
[1733771256440,13.21469306,223.78,223.72,24.027864]
[1733771256637,13.21469306,223.79,223.72,24.027864]
[1733771257002,13.21469306,223.79,223.72,37.24255706]
[1733771257200,13.21469306,223.79,223.72,24.027864]
[1733771257607,13.21469306,223.78,223.72,24.027864]
[1733771257815,13.21469306,223.77,223.72,24.027864]
[1733771258332,13.21469306,223.77,223.71,24.027864]
[1733771258738,1.5066,223.87,223.71,14.75699306]
[1733771259042,1.5066,223.87,223.75,23.902374]
[1733771259043,13.21469306,223.82,223.75,23.902374]
[1733771259226,13.21469306,223.81,223.76,0.12549]
[1733771259435,13.21469306,223.79,223.76,0.12549]
[1733771259722,13.21469306,223.8,223.75,0.25098]
[1733771259902,13.21469306,223.79,223.75,0.25098]
[1733771260103,13.21469306,223.81,223.75,0.25098]
[1733771260420,13.21469306,223.8,223.75,0.12549]
[1733771260922,13.21469306,223.81,223.75,0.12549]
[1733771261319,13.21469306,223.82,223.75,23.902374]
[1733771261616,13.21469306,223.82,223.76,0.12549]
[1733771261817,13.21469306,223.84,223.77,23.902374]
[1733771262017,13.21469306,223.85,223.78,0.12549]
[1733771262220,13.21469306,223.86,223.79,23.902374]
[1733771262423,13.21469306,223.84,223.8,0.12549]
[1733771263111,13.21469306,223.82,223.78,0.25098]
[1733771263427,13.21469306,223.83,223.78,0.25098]
[1733771263730,13.21469306,223.84,223.78,0.25098]
[1733771264208,13.21469306,223.83,223.78,0.25098]
[1733771265103,13.21469306,223.84,223.78,0.25098]
[1733771266526,20.0,223.87,223.78,0.25098]
[1733771266527,13.21469306,223.83,223.78,0.25098]
[1733771267309,13.21469306,223.84,223.78,0.25098]
[1733771267808,20.0,223.87,223.78,0.25098]
[1733771267809,13.21469306,223.82,223.78,0.25098]
[1733771268012,13.21469306,223.8,223.78,0.25098]
[1733771269612,13.21469306,223.79,223.71,8.13]
[1733771269836,13.21469306,223.76,223.71,8.13]
[1733771270141,13.21469306,223.75,223.67,13.21469306]
[1733771270350,13.21469306,223.75,223.66,8.1852]
[1733771270351,13.21469306,223.74,223.66,21.39989306]
[1733771270715,13.21469306,223.73,223.66,8.1852]
[1733771271518,13.21469306,223.75,223.67,13.34018306]
[1733771271819,13.21469306,223.73,223.67,0.12549]
[1733771272023,13.21469306,223.72,223.67,0.12549]
[1733771272224,13.21469306,223.71,223.67,24.027864]
[1733771272735,13.21469306,223.7,223.67,0.12549]
[1733771272911,13.21469306,223.69,223.62,0.5289776]
[1733771273348,13.21469306,223.68,223.62,0.5289776]
[1733771273512,13.21469306,223.67,223.62,0.5289776]
[1733771273912,13.21469306,223.67,223.63,0.12549]
[1733771274141,13.21469306,223.66,223.63,0.12549]
[1733771274844,13.21469306,223.66,223.63,0.25098]
[1733771275552,13.21469306,223.66,223.62,0.5289776]
[1733771275847,13.21469306,223.63,223.62,0.5289776]
[1733771280554,20.0,223.6,223.41,5.0]
[1733771280720,13.21469306,223.54,223.48,0.12549]
[1733771281258,13.21469306,223.54,223.47,13.21469306]
[1733771281764,13.21469306,223.53,223.49,0.25098]
[1733771282048,20.0,223.6,223.49,0.25098]
[1733771282049,13.21469306,223.54,223.49,0.25098]
[1733771282436,13.21469306,223.54,223.48,0.25098]
[1733771283540,13.21469306,223.49,223.42,0.67099519]
[1733771283862,13.21469306,223.46,223.4,7.7318]
[1733771284066,13.21469306,223.52,223.4,7.7318]
[1733771284067,13.21469306,223.47,223.41,0.12549]
[1733771284231,13.21469306,223.45,223.4,7.7318]
[1733771284589,13.21469306,223.44,223.39,0.5289776]
[1733771284933,13.21469306,223.45,223.39,0.5289776]
[1733771285137,13.21469306,223.46,223.39,0.5289776]
[1733771285754,13.21469306,223.44,223.39,0.5289776]
[1733771286064,13.21469306,223.45,223.4,0.12549]
[1733771287339,13.21469306,223.44,223.4,0.12549]
[1733771288639,13.21469306,223.43,223.4,0.12549]
[1733771288866,13.21469306,223.45,223.4,0.12549]
[1733771289241,13.21469306,223.44,223.4,0.12549]
[1733771289441,13.21469306,223.45,223.4,0.12549]
[1733771289665,13.21469306,223.5,223.44,0.12549]
[1733771290038,13.21469306,223.48,223.44,0.12549]
[1733771290238,13.21469306,223.49,223.43,0.12549]
[1733771290451,13.21469306,223.5,223.43,13.34018306]
[1733771290735,1.5374,223.59,223.47,13.34018306]
[1733771290961,1.5374,223.59,223.44,0.67115477]
[1733771290962,13.21469306,223.55,223.49,0.25098]
[1733771291398,13.21469306,223.56,223.5,0.12549]
[1733771291596,13.21469306,223.55,223.5,0.25098]
[1733771291796,13.21469306,223.55,223.44,8.37455477]
[1733771291797,13.21469306,223.51,223.45,0.12549]
[1733771291971,13.21469306,223.5,223.45,0.12549]
[1733771292167,13.21469306,223.51,223.45,0.12549]
[1733771292692,13.21469306,223.51,223.45,0.25098]
[1733771293063,13.21469306,223.52,223.45,0.25098]
[1733771293695,9.988,223.62,223.45,0.25098]
[1733771293696,13.21469306,223.5,223.45,0.25098]
[1733771293875,13.21469306,223.54,223.47,0.12549]
[1733771294194,13.21469306,223.55,223.49,0.25098]
[1733771294487,13.21469306,223.63,223.49,0.25098]
[1733771294488,13.21469306,223.53,223.49,0.25098]
[1733771294689,13.21469306,223.53,223.46,13.21469306]
[1733771294999,13.21469306,223.52,223.45,36.99157706]
[1733771295310,13.21469306,223.52,223.46,0.25098]
[1733771295797,13.21469306,223.53,223.46,13.46567306]
[1733771296163,4.988,223.63,223.45,23.776884]
[1733771296390,24.988,223.61,223.44,6.0417]
[1733771296689,20.0,223.59,223.45,0.12549]
[1733771298480,20.0,223.6,223.45,0.12549]
[1733771298885,20.0,223.59,223.45,0.12549]
[1733771299695,25.0,223.59,223.45,0.12549]
[1733771300288,4.988,223.58,223.4,23.902374]
[1733771300491,4.988,223.56,223.39,8.3798776]
[1733771300872,20.0,223.53,223.4,0.12549]
[1733771301374,21.5757,223.55,223.4,0.12549]
[1733771301795,21.5757,223.55,223.4,0.25098]
[1733771301998,21.5757,223.55,223.4,24.027864]
[1733771302873,5.0,223.61,223.4,24.027864]
[1733771302874,20.0,223.59,223.4,24.027864]
[1733771303073,20.0,223.58,223.42,24.027864]
[1733771303399,20.0,223.57,223.42,24.027864]
[1733771303587,20.0,223.58,223.42,24.027864]
[1733771303776,1.5757,223.6,223.42,24.027864]
[1733771303777,1.5757,223.6,223.44,24.027864]
[1733771305372,21.5757,223.6,223.44,24.027864]
[1733771306378,20.0,223.59,223.44,24.027864]
[1733771306801,20.0,223.58,223.44,24.027864]
[1733771309097,20.0,223.59,223.44,24.027864]
[1733771309601,24.988,223.59,223.44,0.12549]
[1733771309902,24.988,223.59,223.39,9.0509328]
[1733771309903,24.988,223.59,223.41,0.12549]
[1733771310273,20.0,223.58,223.41,0.12549]
[1733771310696,20.0,223.57,223.41,0.12549]
[1733771311700,24.988,223.57,223.4,0.12549]
[1733771312483,20.0,223.53,223.39,8.3798776]
[1733771313611,20.0,223.52,223.39,8.3798776]
[1733771316108,20.0,223.56,223.4,0.25098]
[1733771316310,9.988,223.59,223.4,0.25098]
[1733771316488,11.82156733,223.59,223.4,0.25098]
[1733771316809,5.0,223.59,223.4,24.027864]
[1733771317180,11.5078,223.61,223.4,24.027864]
[1733771317384,6.5637,223.6,223.4,24.027864]
[1733771317618,5.0,223.59,223.4,24.027864]
[1733771317912,6.5637,223.6,223.4,24.027864]
[1733771317913,4.988,223.58,223.4,0.25098]
[1733771318687,20.0,223.56,223.4,0.25098]
[1733771318882,20.0,223.57,223.4,24.027864]
[1733771319101,20.0,223.56,223.4,0.25098]
[1733771319303,20.0,223.57,223.4,24.027864]
[1733771319634,20.0,223.58,223.4,24.027864]
[1733771319803,20.0,223.58,223.41,0.25098]
[1733771319999,1.6419,223.65,223.45,0.25098]
[1733771320317,1.6419,223.65,223.45,50.867864]
[1733771320493,6.331,223.67,223.47,24.027864]
[1733771321319,20.0,223.64,223.47,24.027864]
[1733771323912,20.0,223.63,223.46,0.12549]
[1733771324109,20.0,223.63,223.47,0.12549]
[1733771324513,14.29561186,223.68,223.47,0.12549]
[1733771324514,20.0,223.65,223.47,0.12549]
[1733771325130,20.0,223.63,223.47,0.12549]
[1733771325303,20.0,223.65,223.47,0.12549]
[1733771325801,20.0,223.65,223.46,50.742374]
[1733771325802,20.0,223.65,223.46,50.367864]
[1733771327130,20.0,223.65,223.48,1.5105]
[1733771327432,20.0,223.65,223.49,6.6482]
[1733771327629,20.0,223.65,223.51,0.12549]
[1733771327829,20.0,223.67,223.51,0.12549]
[1733771329052,20.0,223.66,223.51,0.12549]
[1733771329747,5.0,223.7,223.53,24.027864]
[1733771330053,5.0,223.72,223.53,24.027864]
[1733771330742,6.8318116,223.72,223.53,24.027864]
[1733771331326,20.0,223.69,223.53,24.027864]
[1733771332250,20.0,223.71,223.53,24.027864]
[1733771332757,7.4924344,223.74,223.58,0.12549]
[1733771332758,20.0,223.73,223.58,0.12549]
[1733771333646,20.0,223.73,223.59,6.3499]
[1733771334331,1.5112,223.76,223.6,0.12549]
[1733771335051,6.5112,223.76,223.6,0.12549]
[1733771335629,20.0,223.73,223.6,0.12549]
[1733771336044,20.0,223.74,223.6,0.12549]
[1733771336234,20.0,223.73,223.6,0.12549]
[1733771336547,20.0,223.73,223.59,6.3499]
[1733771336942,20.0,223.69,223.59,6.3499]
[1733771337252,20.0,223.69,223.6,0.12549]
[1733771337623,1.5112,223.76,223.6,0.12549]
[1733771337624,20.0,223.74,223.6,0.12549]
[1733771337824,20.0,223.73,223.59,6.3499]
[1733771341256,8.46132427,223.62,223.59,6.3499]
[1733771341461,8.46132427,223.6,223.59,6.3499]
[1733771342429,8.46132427,223.6,223.57,1.5677]
[1733771342649,28.46132427,223.58,223.57,1.5677]
[1733771343975,28.46132427,223.58,223.54,6.1862]
[1733771344149,8.46132427,223.55,223.52,1.6525]
[1733771344334,8.46132427,223.53,223.52,1.6525]
[1733771346739,42.30662135,223.53,223.47,1.5186]
[1733771346942,8.46132427,223.48,223.47,1.5186]
[1733771347940,8.46132427,223.49,223.47,1.5186]
[1733771349953,8.46132427,223.48,223.47,1.5186]
[1733771350534,8.46132427,223.49,223.47,1.5186]
[1733771351265,20.0,223.58,223.47,1.5186]
[1733771351457,8.46132427,223.49,223.47,1.5186]
[1733771352461,8.46132427,223.51,223.47,1.5186]
[1733771352954,8.46132427,223.5,223.47,1.5186]
[1733771353740,20.0,223.59,223.47,1.5186]
[1733771353948,8.46132427,223.5,223.47,1.5186]
[1733771354254,20.0,223.59,223.47,1.5186]
[1733771354569,8.46132427,223.51,223.47,1.5186]
[1733771355136,8.46132427,223.5,223.47,1.5186]
[1733771355770,8.46132427,223.51,223.47,1.5186]
[1733771356264,8.46132427,223.49,223.47,1.5186]
[1733771356762,20.0,223.59,223.47,1.5186]
[1733771356966,8.46132427,223.5,223.47,1.5186]
[1733771358066,20.0,223.6,223.47,1.5186]